[Event "Titled Tuesday Blitz February 14 Late 2023"]
[White "Haydon, David L"]
[Black "Meunier-Pion, Jean"]
[WhiteFideId "415405"]
[BlackFideId "20685327"]
[WhiteElo "2253"]
[BlackElo "2215"]
[Result "1-0"]
[Round "04"]
[TimeControl "180+2"]
[Date "2023.02.14"]
[WhiteClock "0:01:32"]
[BlackClock "0:00:02"]

1. c4 {[%clk 0:03:00]}  e5 {[%clk 0:02:58]} 2. Nc3 {[%clk 0:03:01]}  Nf6 {[%clk 0:02:58]} 3. g3 {[%clk 0:03:01]}  d5 {[%clk 0:02:58]} 4. cxd5 {[%clk 0:02:59]}  Nxd5 {[%clk 0:02:58]} 5. Bg2 {[%clk 0:03:00]}  Nb6 {[%clk 0:02:58]} 6. d3 {[%clk 0:02:59]}  Be7 {[%clk 0:02:58]} 7. Nf3 {[%clk 0:02:59]}  Nc6 {[%clk 0:02:57]} 8. O-O {[%clk 0:03:00]}  O-O {[%clk 0:02:58]} 9. a3 {[%clk 0:03:00]}  Re8 {[%clk 0:02:57]} 10. Be3 {[%clk 0:03:00]}  Bf8 {[%clk 0:02:31]} 11. Rc1 {[%clk 0:02:58]}  Bg4 {[%clk 0:02:22]} 12. h3 {[%clk 0:02:55]}  Be6 {[%clk 0:02:03]} 13. Ng5 {[%clk 0:02:51]}  Bd7 {[%clk 0:01:59]} 14. Qb3 {[%clk 0:02:49]}  Be6 {[%clk 0:01:25]} 15. Nxe6 {[%clk 0:02:42]}  Rxe6 {[%clk 0:01:26]} 16. Nd5 {[%clk 0:02:41]}  Rb8 {[%clk 0:01:12]} 17. Nxb6 {[%clk 0:02:36]}  axb6 {[%clk 0:01:12]} 18. Bd5 {[%clk 0:02:35]}  Re7 {[%clk 0:00:43]} 19. Bg5 {[%clk 0:02:32]}  Nd4 {[%clk 0:00:42]} 20. Bxe7 {[%clk 0:02:31]}  Nxb3 {[%clk 0:00:39]} 21. Bxd8 {[%clk 0:02:30]}  Nxc1 {[%clk 0:00:39]} 22. Bxc7 {[%clk 0:02:29]}  Nxe2+ {[%clk 0:00:39]} 23. Kg2 {[%clk 0:02:28]}  Rc8 {[%clk 0:00:37]} 24. Bxb6 {[%clk 0:02:28]}  Rc2 {[%clk 0:00:26]} 25. b4 {[%clk 0:02:24]}  Rc3 {[%clk 0:00:22]} 26. Ra1 {[%clk 0:02:16]}  Rxd3 {[%clk 0:00:16]} 27. Bxb7 {[%clk 0:02:14]}  g6 {[%clk 0:00:12]} 28. b5 {[%clk 0:02:12]}  Rb3 {[%clk 0:00:10]} 29. a4 {[%clk 0:02:07]}  Nd4 {[%clk 0:00:10]} 30. Bd5 {[%clk 0:02:05]}  Rb2 {[%clk 0:00:10]} 31. Rc1 {[%clk 0:01:58]}  Nc2 {[%clk 0:00:05]} 32. a5 {[%clk 0:01:53]}  Bb4 {[%clk 0:00:03]} 33. a6 {[%clk 0:01:50]}  Bd2 {[%clk 0:00:03]} 34. Rxc2 {[%clk 0:01:46]}  Rxc2 {[%clk 0:00:03]} 35. a7 {[%clk 0:01:45]}  Ra2 {[%clk 0:00:03]} 36. a8=Q+ {[%clk 0:01:44]}  Rxa8 {[%clk 0:00:04]} 37. Bxa8 {[%clk 0:01:44]}  Kg7 {[%clk 0:00:05]} 38. Be3 {[%clk 0:01:42]}  Ba5 {[%clk 0:00:05]} 39. b6 {[%clk 0:01:41]}  Kf6 {[%clk 0:00:04]} 40. b7 {[%clk 0:01:41]}  Bc7 {[%clk 0:00:05]} 41. Bb6 {[%clk 0:01:41]}  Bb8 {[%clk 0:00:05]} 42. Kf3 {[%clk 0:01:41]}  Ke6 {[%clk 0:00:05]} 43. Ke4 {[%clk 0:01:41]}  f5+ {[%clk 0:00:05]} 44. Kd3 {[%clk 0:01:40]}  Kd5 {[%clk 0:00:06]} 45. Be3 {[%clk 0:01:38]}  f4 {[%clk 0:00:05]} 46. gxf4 {[%clk 0:01:37]}  exf4 {[%clk 0:00:06]} 47. Bd4 {[%clk 0:01:36]}  g5 {[%clk 0:00:06]} 48. f3 {[%clk 0:01:36]}  Ke6 {[%clk 0:00:05]} 49. Ke4 {[%clk 0:01:35]}  h5 {[%clk 0:00:05]} 50. Bg7 {[%clk 0:01:34]}  Kf7 {[%clk 0:00:03]} 51. Be5 {[%clk 0:01:34]}  Bxe5 {[%clk 0:00:02]} 52. Kxe5 {[%clk 0:01:32]} 1-0


[Site "https://www.chess.com"]

[Event "Titled Tuesday Blitz February 14 Late 2023"]
[White "Risteski, Emil"]
[Black "Gatterer, Florian"]
[WhiteFideId "15005267"]
[BlackFideId "811688"]
[WhiteElo "2366"]
[BlackElo "2170"]
[Result "1-0"]
[Round "04"]
[TimeControl "180+2"]
[Date "2023.02.14"]
[WhiteClock "0:00:03"]
[BlackClock "0:00:01"]

1. f4 {[%clk 0:02:59]}  d5 {[%clk 0:02:59]} 2. Nf3 {[%clk 0:02:59]}  g6 {[%clk 0:03:00]} 3. e3 {[%clk 0:02:43]}  Bg7 {[%clk 0:03:00]} 4. Be2 {[%clk 0:02:44]}  Nf6 {[%clk 0:03:00]} 5. O-O {[%clk 0:02:43]}  O-O {[%clk 0:03:00]} 6. d3 {[%clk 0:02:44]}  c5 {[%clk 0:02:59]} 7. Qe1 {[%clk 0:02:43]}  d4 {[%clk 0:02:55]} 8. e4 {[%clk 0:02:42]}  Ng4 {[%clk 0:02:51]} 9. Bd1 {[%clk 0:02:37]}  Nc6 {[%clk 0:02:48]} 10. e5 {[%clk 0:02:25]}  f6 {[%clk 0:02:44]} 11. h3 {[%clk 0:02:12]}  Ne3 {[%clk 0:02:41]} 12. Bxe3 {[%clk 0:02:11]}  dxe3 {[%clk 0:02:42]} 13. Qxe3 {[%clk 0:02:12]}  fxe5 {[%clk 0:02:38]} 14. fxe5 {[%clk 0:02:12]}  Nd4 {[%clk 0:02:33]} 15. Nc3 {[%clk 0:02:11]}  Be6 {[%clk 0:02:12]} 16. Rf2 {[%clk 0:01:52]}  b6 {[%clk 0:02:05]} 17. Ng5 {[%clk 0:01:47]}  Rxf2 {[%clk 0:02:01]} 18. Kxf2 {[%clk 0:01:38]}  Qc7 {[%clk 0:01:55]} 19. Nxe6 {[%clk 0:01:36]}  Nxe6 {[%clk 0:01:54]} 20. Bf3 {[%clk 0:01:36]}  Rf8 {[%clk 0:01:27]} 21. Nd5 {[%clk 0:01:18]}  Qxe5 {[%clk 0:01:21]} 22. Qxe5 {[%clk 0:01:17]}  Bxe5 {[%clk 0:01:21]} 23. c3 {[%clk 0:01:16]}  Bd6 {[%clk 0:01:18]} 24. Kg1 {[%clk 0:01:13]}  Ng5 {[%clk 0:01:17]} 25. Be2 {[%clk 0:01:10]}  e6 {[%clk 0:01:15]} 26. Ne3 {[%clk 0:01:07]}  Bf4 {[%clk 0:01:09]} 27. Nc4 {[%clk 0:00:59]}  b5 {[%clk 0:01:04]} 28. Na3 {[%clk 0:00:54]}  b4 {[%clk 0:01:04]} 29. Nc4 {[%clk 0:00:53]}  Rb8 {[%clk 0:00:39]} 30. Rf1 {[%clk 0:00:49]}  e5 {[%clk 0:00:36]} 31. Bd1 {[%clk 0:00:42]}  bxc3 {[%clk 0:00:35]} 32. bxc3 {[%clk 0:00:42]}  Kg7 {[%clk 0:00:35]} 33. Bb3 {[%clk 0:00:39]}  h5 {[%clk 0:00:33]} 34. h4 {[%clk 0:00:27]}  Nh7 {[%clk 0:00:30]} 35. Rf3 {[%clk 0:00:27]}  g5 {[%clk 0:00:23]} 36. hxg5 {[%clk 0:00:22]}  Nxg5 {[%clk 0:00:22]} 37. Rf1 {[%clk 0:00:21]}  h4 {[%clk 0:00:22]} 38. Re1 {[%clk 0:00:18]}  Nf7 {[%clk 0:00:19]} 39. Re2 {[%clk 0:00:16]}  Rd8 {[%clk 0:00:19]} 40. Bc2 {[%clk 0:00:15]}  Rb8 {[%clk 0:00:18]} 41. Kf2 {[%clk 0:00:14]}  Kf6 {[%clk 0:00:19]} 42. Bb3 {[%clk 0:00:11]}  a6 {[%clk 0:00:17]} 43. Nb2 {[%clk 0:00:09]}  a5 {[%clk 0:00:16]} 44. Nc4 {[%clk 0:00:09]}  a4 {[%clk 0:00:15]} 45. Bxa4 {[%clk 0:00:09]}  Rb1 {[%clk 0:00:15]} 46. Nd2 {[%clk 0:00:06]}  Bg3+ {[%clk 0:00:14]} 47. Ke3 {[%clk 0:00:05]}  Bf4+ {[%clk 0:00:13]} 48. Kf2 {[%clk 0:00:06]}  Bg3+ {[%clk 0:00:12]} 49. Kf3 {[%clk 0:00:05]}  Ng5+ {[%clk 0:00:12]} 50. Kg4 {[%clk 0:00:06]}  Rh1 {[%clk 0:00:06]} 51. Nf3 {[%clk 0:00:06]}  Nxf3 {[%clk 0:00:06]} 52. Kxf3 {[%clk 0:00:06]}  Rf1+ {[%clk 0:00:05]} 53. Kg4 {[%clk 0:00:06]}  Rc1 {[%clk 0:00:06]} 54. Bb3 {[%clk 0:00:06]}  Rxc3 {[%clk 0:00:05]} 55. Bc4 {[%clk 0:00:07]}  Rc1 {[%clk 0:00:05]} 56. Rb2 {[%clk 0:00:06]}  Rf1 {[%clk 0:00:05]} 57. a4 {[%clk 0:00:05]}  Rf4+ {[%clk 0:00:04]} 58. Kh3 {[%clk 0:00:06]}  e4 {[%clk 0:00:04]} 59. a5 {[%clk 0:00:06]}  e3 {[%clk 0:00:04]} 60. a6 {[%clk 0:00:06]}  Rf2 {[%clk 0:00:04]} 61. a7 {[%clk 0:00:03]}  Rxb2 {[%clk 0:00:01]} 62. a8=Q {[%clk 0:00:03]}  Rb1 {[%clk 0:00:02]} 63. Qf3+ {[%clk 0:00:03]}  Kg5 {[%clk 0:00:01]} 64. Qg4+ {[%clk 0:00:03]}  Kh6 {[%clk 0:00:02]} 65. Qe6+ {[%clk 0:00:02]}  Kh5 {[%clk 0:00:02]} 66. Qf5+ {[%clk 0:00:03]}  Kh6 {[%clk 0:00:02]} 67. Kg4 {[%clk 0:00:03]}  Re1 {[%clk 0:00:01]} 68. Qe6+ {[%clk 0:00:03]} 1-0


[Site "https://www.chess.com"]

[Event "Titled Tuesday Blitz February 14 Late 2023"]
[White "Delorme, Axel"]
[Black "WindWhistler11"]
[WhiteFideId "632023"]
[WhiteElo "2483"]
[BlackElo "2627"]
[Result "1-0"]
[Round "04"]
[TimeControl "180+2"]
[Date "2023.02.14"]
[WhiteClock "0:00:51"]
[BlackClock "0:00:03"]

1. e4 {[%clk 0:03:00]}  e6 {[%clk 0:02:53]} 2. d4 {[%clk 0:03:00]}  d5 {[%clk 0:02:50]} 3. Nc3 {[%clk 0:03:01]}  Bb4 {[%clk 0:02:50]} 4. e5 {[%clk 0:03:01]}  Ne7 {[%clk 0:02:45]} 5. a3 {[%clk 0:03:01]}  Ba5 {[%clk 0:02:45]} 6. b4 {[%clk 0:02:56]}  Bb6 {[%clk 0:02:43]} 7. Nf3 {[%clk 0:02:54]}  Nbc6 {[%clk 0:02:42]} 8. Na4 {[%clk 0:02:48]}  Bd7 {[%clk 0:02:34]} 9. c3 {[%clk 0:02:46]}  O-O {[%clk 0:02:05]} 10. Bd3 {[%clk 0:02:45]}  f5 {[%clk 0:01:57]} 11. exf6 {[%clk 0:02:39]}  gxf6 {[%clk 0:01:56]} 12. O-O {[%clk 0:02:37]}  Rf7 {[%clk 0:01:56]} 13. Re1 {[%clk 0:02:35]}  Kh8 {[%clk 0:01:51]} 14. Bh6 {[%clk 0:02:24]}  Qg8 {[%clk 0:01:49]} 15. Nc5 {[%clk 0:02:10]}  Bxc5 {[%clk 0:01:47]} 16. bxc5 {[%clk 0:02:11]}  Ng6 {[%clk 0:01:40]} 17. Rb1 {[%clk 0:02:05]}  b6 {[%clk 0:01:39]} 18. c4 {[%clk 0:01:58]}  Nce7 {[%clk 0:01:20]} 19. cxb6 {[%clk 0:01:43]}  axb6 {[%clk 0:01:20]} 20. Qc1 {[%clk 0:01:36]}  Rc8 {[%clk 0:00:29]} 21. c5 {[%clk 0:01:34]}  bxc5 {[%clk 0:00:25]} 22. Qxc5 {[%clk 0:01:34]}  Nc6 {[%clk 0:00:19]} 23. Bb5 {[%clk 0:01:27]}  Nge7 {[%clk 0:00:20]} 24. a4 {[%clk 0:01:17]}  Qg6 {[%clk 0:00:20]} 25. Bf4 {[%clk 0:01:16]}  Rg7 {[%clk 0:00:19]} 26. Bg3 {[%clk 0:01:17]}  f5 {[%clk 0:00:10]} 27. Qc1 {[%clk 0:01:08]}  Rf8 {[%clk 0:00:07]} 28. Bf1 {[%clk 0:01:06]}  Qh5 {[%clk 0:00:05]} 29. Ne5 {[%clk 0:01:02]}  Be8 {[%clk 0:00:03]} 30. Be2 {[%clk 0:00:51]} 1-0


[Site "https://www.chess.com"]

[Event "Titled Tuesday Blitz February 14 Late 2023"]
[White "Miszler, Levente"]
[Black "Alvarez Calzadilla, Jose Avelino"]
[WhiteFideId "763276"]
[BlackFideId "3526151"]
[WhiteElo "2271"]
[BlackElo "2386"]
[Result "0-1"]
[Round "04"]
[TimeControl "180+2"]
[Date "2023.02.14"]
[WhiteClock "0:00:09"]
[BlackClock "0:00:25"]

1. Nf3 {[%clk 0:03:00]}  Nf6 {[%clk 0:03:00]} 2. c4 {[%clk 0:02:58]}  g6 {[%clk 0:02:58]} 3. g3 {[%clk 0:02:58]}  b6 {[%clk 0:02:57]} 4. Bg2 {[%clk 0:02:59]}  Bb7 {[%clk 0:02:57]} 5. O-O {[%clk 0:02:59]}  c5 {[%clk 0:02:57]} 6. Nc3 {[%clk 0:03:00]}  Bg7 {[%clk 0:02:57]} 7. d4 {[%clk 0:02:57]}  cxd4 {[%clk 0:02:57]} 8. Qxd4 {[%clk 0:02:57]}  O-O {[%clk 0:02:56]} 9. Qh4 {[%clk 0:02:56]}  Re8 {[%clk 0:02:49]} 10. Rd1 {[%clk 0:02:55]}  d6 {[%clk 0:02:44]} 11. b3 {[%clk 0:02:55]}  Nbd7 {[%clk 0:02:42]} 12. Bb2 {[%clk 0:02:55]}  Rc8 {[%clk 0:02:42]} 13. Rac1 {[%clk 0:02:55]}  Rc5 {[%clk 0:02:42]} 14. Nd5 {[%clk 0:02:34]}  Qa8 {[%clk 0:02:26]} 15. e4 {[%clk 0:02:21]}  h6 {[%clk 0:02:00]} 16. Nd4 {[%clk 0:02:08]}  Ne5 {[%clk 0:01:46]} 17. f4 {[%clk 0:02:02]}  Ned7 {[%clk 0:01:24]} 18. Qh3 {[%clk 0:01:58]}  Bc8 {[%clk 0:01:21]} 19. Qh4 {[%clk 0:01:55]}  Bb7 {[%clk 0:01:21]} 20. Nb5 {[%clk 0:01:38]}  Qb8 {[%clk 0:01:08]} 21. b4 {[%clk 0:01:12]}  Rcc8 {[%clk 0:01:07]} 22. e5 {[%clk 0:00:54]}  dxe5 {[%clk 0:01:07]} 23. fxe5 {[%clk 0:00:55]}  Nxe5 {[%clk 0:01:02]} 24. Qf4 {[%clk 0:00:36]}  Nxd5 {[%clk 0:00:47]} 25. cxd5 {[%clk 0:00:34]}  Rxc1 {[%clk 0:00:46]} 26. Bxc1 {[%clk 0:00:26]}  Qc8 {[%clk 0:00:38]} 27. d6 {[%clk 0:00:23]}  Bxg2 {[%clk 0:00:33]} 28. d7 {[%clk 0:00:18]}  Nxd7 {[%clk 0:00:30]} 29. Kxg2 {[%clk 0:00:15]}  Qc6+ {[%clk 0:00:30]} 30. Kg1 {[%clk 0:00:12]}  Qxb5 {[%clk 0:00:29]} 31. Qc7 {[%clk 0:00:12]}  Nf6 {[%clk 0:00:26]} 32. Rd8 {[%clk 0:00:09]}  Rxd8 {[%clk 0:00:25]} 33. Qxd8+ {[%clk 0:00:10]}  Qe8 {[%clk 0:00:25]} 34. Qc7 {[%clk 0:00:09]} 0-1


[Site "https://www.chess.com"]

[Event "Titled Tuesday Blitz February 14 Late 2023"]
[White "Vaglio Mattey, Emanuel"]
[Black "Nefedov, Sergey"]
[WhiteFideId "6504167"]
[BlackFideId "24113417"]
[WhiteElo "2155"]
[BlackElo "2300"]
[Result "0-1"]
[Round "04"]
[TimeControl "180+2"]
[Date "2023.02.14"]
[WhiteClock "0:00:04"]
[BlackClock "0:00:07"]

1. d4 {[%clk 0:03:00]}  Nf6 {[%clk 0:02:58]} 2. Nf3 {[%clk 0:03:00]}  g6 {[%clk 0:02:56]} 3. Bg5 {[%clk 0:03:00]}  Bg7 {[%clk 0:02:56]} 4. Nbd2 {[%clk 0:03:00]}  c5 {[%clk 0:02:53]} 5. e3 {[%clk 0:02:59]}  O-O {[%clk 0:02:49]} 6. c3 {[%clk 0:02:56]}  b6 {[%clk 0:02:48]} 7. Be2 {[%clk 0:02:54]}  Bb7 {[%clk 0:02:48]} 8. O-O {[%clk 0:02:54]}  d6 {[%clk 0:02:47]} 9. a4 {[%clk 0:02:53]}  a6 {[%clk 0:02:47]} 10. a5 {[%clk 0:02:37]}  b5 {[%clk 0:02:45]} 11. dxc5 {[%clk 0:02:36]}  dxc5 {[%clk 0:02:44]} 12. Bxf6 {[%clk 0:02:15]}  exf6 {[%clk 0:02:38]} 13. Nb3 {[%clk 0:02:15]}  Qe7 {[%clk 0:02:35]} 14. Ne1 {[%clk 0:01:23]}  Rd8 {[%clk 0:02:33]} 15. Qc1 {[%clk 0:01:19]}  Nc6 {[%clk 0:02:29]} 16. Nd2 {[%clk 0:01:05]}  Ne5 {[%clk 0:02:17]} 17. Ndf3 {[%clk 0:01:02]}  Rd7 {[%clk 0:02:03]} 18. Nxe5 {[%clk 0:00:48]}  fxe5 {[%clk 0:01:59]} 19. Nd3 {[%clk 0:00:37]}  e4 {[%clk 0:01:42]} 20. Nf4 {[%clk 0:00:37]}  g5 {[%clk 0:01:37]} 21. Nh5 {[%clk 0:00:35]}  Be5 {[%clk 0:01:36]} 22. Ng3 {[%clk 0:00:35]}  Rad8 {[%clk 0:01:33]} 23. Rd1 {[%clk 0:00:23]}  Rxd1+ {[%clk 0:01:27]} 24. Bxd1 {[%clk 0:00:24]}  Bxg3 {[%clk 0:01:24]} 25. hxg3 {[%clk 0:00:25]}  Qd7 {[%clk 0:01:21]} 26. Bh5 {[%clk 0:00:23]}  f5 {[%clk 0:01:13]} 27. Qd1 {[%clk 0:00:18]}  g4 {[%clk 0:01:11]} 28. Qe2 {[%clk 0:00:14]}  Kg7 {[%clk 0:00:56]} 29. c4 {[%clk 0:00:08]}  Kh6 {[%clk 0:00:48]} 30. cxb5 {[%clk 0:00:08]}  axb5 {[%clk 0:00:44]} 31. a6 {[%clk 0:00:09]}  Bc6 {[%clk 0:00:43]} 32. a7 {[%clk 0:00:09]}  Kxh5 {[%clk 0:00:43]} 33. Ra6 {[%clk 0:00:10]}  Qd1+ {[%clk 0:00:35]} 34. Qxd1 {[%clk 0:00:10]}  Rxd1+ {[%clk 0:00:36]} 35. Kh2 {[%clk 0:00:10]}  Ba8 {[%clk 0:00:36]} 36. Rb6 {[%clk 0:00:08]}  Ra1 {[%clk 0:00:37]} 37. Rxb5 {[%clk 0:00:08]}  Rxa7 {[%clk 0:00:36]} 38. Rxc5 {[%clk 0:00:09]}  Kg5 {[%clk 0:00:35]} 39. Rc8 {[%clk 0:00:10]}  Bd5 {[%clk 0:00:33]} 40. Rc5 {[%clk 0:00:09]}  Be6 {[%clk 0:00:32]} 41. b4 {[%clk 0:00:09]}  Ra2 {[%clk 0:00:30]} 42. Kg1 {[%clk 0:00:10]}  Ra1+ {[%clk 0:00:29]} 43. Kh2 {[%clk 0:00:10]}  Rf1 {[%clk 0:00:29]} 44. b5 {[%clk 0:00:11]}  Rxf2 {[%clk 0:00:28]} 45. b6 {[%clk 0:00:12]}  Rb2 {[%clk 0:00:28]} 46. Rc6 {[%clk 0:00:12]}  Kf6 {[%clk 0:00:28]} 47. Kg1 {[%clk 0:00:11]}  Ke5 {[%clk 0:00:27]} 48. Kf1 {[%clk 0:00:09]}  Bd5 {[%clk 0:00:27]} 49. Rc7 {[%clk 0:00:10]}  Rxb6 {[%clk 0:00:27]} 50. Rxh7 {[%clk 0:00:10]}  Rb1+ {[%clk 0:00:25]} 51. Kf2 {[%clk 0:00:11]}  Bc4 {[%clk 0:00:24]} 52. Re7+ {[%clk 0:00:11]}  Be6 {[%clk 0:00:17]} 53. Rc7 {[%clk 0:00:09]}  Rb2+ {[%clk 0:00:18]} 54. Kg1 {[%clk 0:00:09]}  Re2 {[%clk 0:00:17]} 55. Rc3 {[%clk 0:00:08]}  Bd7 {[%clk 0:00:15]} 56. Kh2 {[%clk 0:00:08]}  Kd5 {[%clk 0:00:15]} 57. Ra3 {[%clk 0:00:05]}  Bb5 {[%clk 0:00:15]} 58. Rc3 {[%clk 0:00:04]}  Bd3 {[%clk 0:00:15]} 59. Rc8 {[%clk 0:00:04]}  Rxe3 {[%clk 0:00:15]} 60. Rd8+ {[%clk 0:00:05]}  Kc4 {[%clk 0:00:14]} 61. Rc8+ {[%clk 0:00:06]}  Kd4 {[%clk 0:00:15]} 62. Rb8 {[%clk 0:00:06]}  Re1 {[%clk 0:00:14]} 63. Rb4+ {[%clk 0:00:06]}  Kc3 {[%clk 0:00:09]} 64. Rc4+ {[%clk 0:00:05]}  Kd2 {[%clk 0:00:09]} 65. Rc2+ {[%clk 0:00:06]}  Ke3 {[%clk 0:00:09]} 66. Rc3 {[%clk 0:00:06]}  Re2 {[%clk 0:00:09]} 67. Rc5 {[%clk 0:00:06]}  Rc2 {[%clk 0:00:09]} 68. Rxf5 {[%clk 0:00:06]}  Kd2 {[%clk 0:00:07]} 69. Rf8 {[%clk 0:00:04]}  e3 {[%clk 0:00:07]} 70. Re8 {[%clk 0:00:02]}  e2 {[%clk 0:00:08]} 71. Rd8 {[%clk 0:00:02]}  Rc3 {[%clk 0:00:07]} 72. Rd7 {[%clk 0:00:02]}  Kc2 {[%clk 0:00:07]} 73. Rd6 {[%clk 0:00:02]}  e1=Q {[%clk 0:00:07]} 74. Rxd3 {[%clk 0:00:02]}  Qe5 {[%clk 0:00:05]} 75. Rd6 {[%clk 0:00:01]}  Qxg3+ {[%clk 0:00:05]} 76. Kg1 {[%clk 0:00:01]}  Qxd6 {[%clk 0:00:05]} 77. Kh1 {[%clk 0:00:02]}  Rd3 {[%clk 0:00:04]} 78. Kg1 {[%clk 0:00:02]}  g3 {[%clk 0:00:05]} 79. Kf1 {[%clk 0:00:03]}  Qf4+ {[%clk 0:00:05]} 80. Ke2 {[%clk 0:00:04]}  Qe3+ {[%clk 0:00:06]} 81. Kf1 {[%clk 0:00:04]}  Rd1# {[%clk 0:00:07]} 0-1


[Site "https://www.chess.com"]

[Event "Titled Tuesday Blitz February 14 Late 2023"]
[White "Gomes, Luiz Alexandre de Souza"]
[Black "The_Sherman_Variation"]
[WhiteFideId "2102790"]
[WhiteElo "2254"]
[BlackElo "2511"]
[Result "1-0"]
[Round "04"]
[TimeControl "180+2"]
[Date "2023.02.14"]
[WhiteClock "0:01:49"]
[BlackClock "0:00:58"]

1. e4 {[%clk 0:03:00]}  c5 {[%clk 0:02:54]} 2. Nf3 {[%clk 0:03:00]}  e6 {[%clk 0:02:54]} 3. d4 {[%clk 0:03:00]}  cxd4 {[%clk 0:02:55]} 4. Nxd4 {[%clk 0:03:01]}  Nf6 {[%clk 0:02:55]} 5. Nc3 {[%clk 0:03:01]}  Nc6 {[%clk 0:02:55]} 6. Nxc6 {[%clk 0:03:01]}  bxc6 {[%clk 0:02:56]} 7. Bd3 {[%clk 0:03:01]}  d5 {[%clk 0:02:55]} 8. O-O {[%clk 0:03:01]}  Be7 {[%clk 0:02:55]} 9. Qf3 {[%clk 0:03:00]}  O-O {[%clk 0:02:45]} 10. Re1 {[%clk 0:03:00]}  d4 {[%clk 0:02:39]} 11. Ne2 {[%clk 0:02:57]}  e5 {[%clk 0:02:38]} 12. h3 {[%clk 0:02:57]}  h6 {[%clk 0:02:33]} 13. Ng3 {[%clk 0:02:57]}  Nh7 {[%clk 0:02:32]} 14. Nf5 {[%clk 0:02:56]}  Ng5 {[%clk 0:02:25]} 15. Qg3 {[%clk 0:02:47]}  Bxf5 {[%clk 0:02:09]} 16. exf5 {[%clk 0:02:48]}  f6 {[%clk 0:02:08]} 17. Bxg5 {[%clk 0:02:45]}  hxg5 {[%clk 0:02:06]} 18. Bc4+ {[%clk 0:02:44]}  Rf7 {[%clk 0:01:56]} 19. Qf3 {[%clk 0:02:41]}  Qc7 {[%clk 0:01:41]} 20. c3 {[%clk 0:02:34]}  Bc5 {[%clk 0:01:39]} 21. cxd4 {[%clk 0:02:33]}  Bxd4 {[%clk 0:01:40]} 22. Rac1 {[%clk 0:02:29]}  c5 {[%clk 0:01:38]} 23. Qxa8+ {[%clk 0:02:26]}  Kh7 {[%clk 0:01:37]} 24. Bxf7 {[%clk 0:02:26]}  Qxf7 {[%clk 0:01:38]} 25. b3 {[%clk 0:02:23]}  Qc7 {[%clk 0:01:29]} 26. Qd5 {[%clk 0:02:19]}  Qa5 {[%clk 0:01:25]} 27. Re2 {[%clk 0:02:16]}  Qa3 {[%clk 0:01:20]} 28. Rcc2 {[%clk 0:02:11]}  Qa6 {[%clk 0:01:17]} 29. g3 {[%clk 0:02:11]}  Qd3 {[%clk 0:01:15]} 30. Kg2 {[%clk 0:02:08]}  a5 {[%clk 0:01:09]} 31. Red2 {[%clk 0:02:04]}  Qxf5 {[%clk 0:01:08]} 32. Rxc5 {[%clk 0:01:57]}  g4 {[%clk 0:00:59]} 33. hxg4 {[%clk 0:01:53]}  Qxg4 {[%clk 0:01:00]} 34. Rc4 {[%clk 0:01:51]}  Qg5 {[%clk 0:00:58]} 35. Rcxd4 {[%clk 0:01:49]} 1-0


[Site "https://www.chess.com"]

[Event "Titled Tuesday Blitz February 14 Late 2023"]
[White "Fernandez Siles, Luis"]
[Black "Urbina Perez, Juan Antonio"]
[WhiteFideId "2209420"]
[BlackFideId "2217368"]
[WhiteElo "2218"]
[BlackElo "2266"]
[Result "0-1"]
[Round "04"]
[TimeControl "180+2"]
[Date "2023.02.14"]
[WhiteClock "0:00:06"]
[BlackClock "0:00:37"]

1. d4 {[%clk 0:03:00]}  d5 {[%clk 0:02:52]} 2. c4 {[%clk 0:02:59]}  c6 {[%clk 0:02:50]} 3. Nc3 {[%clk 0:02:59]}  Nf6 {[%clk 0:02:51]} 4. cxd5 {[%clk 0:02:59]}  cxd5 {[%clk 0:02:49]} 5. Bf4 {[%clk 0:02:59]}  Nc6 {[%clk 0:02:50]} 6. e3 {[%clk 0:02:59]}  a6 {[%clk 0:02:50]} 7. Bd3 {[%clk 0:02:57]}  Bg4 {[%clk 0:02:43]} 8. Nge2 {[%clk 0:02:57]}  Bxe2 {[%clk 0:02:41]} 9. Qxe2 {[%clk 0:02:55]}  e6 {[%clk 0:02:42]} 10. O-O {[%clk 0:02:48]}  Bd6 {[%clk 0:02:42]} 11. Bg5 {[%clk 0:02:48]}  h6 {[%clk 0:02:39]} 12. Bh4 {[%clk 0:02:48]}  O-O {[%clk 0:02:33]} 13. Rfc1 {[%clk 0:02:26]}  Be7 {[%clk 0:02:28]} 14. f3 {[%clk 0:02:20]}  Rc8 {[%clk 0:02:22]} 15. Na4 {[%clk 0:02:11]}  e5 {[%clk 0:02:19]} 16. Bf5 {[%clk 0:01:55]}  Ra8 {[%clk 0:02:13]} 17. dxe5 {[%clk 0:01:41]}  Nxe5 {[%clk 0:02:14]} 18. Nc5 {[%clk 0:01:36]}  Ng6 {[%clk 0:02:07]} 19. Bxf6 {[%clk 0:01:30]}  Bxf6 {[%clk 0:02:00]} 20. Nd7 {[%clk 0:01:13]}  Re8 {[%clk 0:01:55]} 21. Nxf6+ {[%clk 0:01:05]}  Qxf6 {[%clk 0:01:56]} 22. Bxg6 {[%clk 0:01:05]}  Qxg6 {[%clk 0:01:50]} 23. Qd2 {[%clk 0:01:00]}  Rad8 {[%clk 0:01:47]} 24. Rc7 {[%clk 0:00:56]}  Qb6 {[%clk 0:01:45]} 25. Rac1 {[%clk 0:00:14]}  Rxe3 {[%clk 0:01:31]} 26. Kh1 {[%clk 0:00:14]}  Rde8 {[%clk 0:01:31]} 27. h4 {[%clk 0:00:11]}  Qf6 {[%clk 0:01:24]} 28. Qf2 {[%clk 0:00:11]}  Qf4 {[%clk 0:01:09]} 29. Rc8 {[%clk 0:00:09]}  Rxc8 {[%clk 0:00:49]} 30. Rxc8+ {[%clk 0:00:10]}  Kh7 {[%clk 0:00:49]} 31. Rc3 {[%clk 0:00:07]}  Rxc3 {[%clk 0:00:44]} 32. bxc3 {[%clk 0:00:08]}  Qc1+ {[%clk 0:00:44]} 33. Kh2 {[%clk 0:00:08]}  Qxc3 {[%clk 0:00:43]} 34. Qb6 {[%clk 0:00:08]}  Qe5+ {[%clk 0:00:42]} 35. g3 {[%clk 0:00:08]}  Qe2+ {[%clk 0:00:38]} 36. Kg1 {[%clk 0:00:06]}  Qxf3 {[%clk 0:00:37]} 0-1


[Site "https://www.chess.com"]